[Event "Snabb-SM för veteraner, 65+ 2019"]
[Site "Schackcentrum, Vegagatan 20, Gothenburg, Sweden"]
[Date "2019.10.05"]
[Round "2.1"]
[White "Landin, Bo"]
[Black "Wahlstrom, Lennart"]
[Result "1/2-1/2"]
[TimeControl "15 minutes + 10 seconds per move from move one"]
[WhiteFideId "1705261"]
[BlackFideId "1706829"]
[WhiteElo "1959"]
[BlackElo "2109"]

1. e4 {[%clk 00:15:16]} {[%emt 00:00:03]} e5 {[%clk 00:15:16]} {[%emt
00:00:05]} 2. Nf3 {[%clk 00:15:24]} {[%emt 00:00:02]} Nc6 {[%clk 00:15:24]}
{[%emt 00:00:02]} 3. Bb5 {[%clk 00:15:30]} {[%emt 00:00:04]} a6 {[%clk
00:15:32]} {[%emt 00:00:02]} 4. Ba4 {[%clk 00:15:39]} {[%emt 00:00:02]} Nf6
{[%clk 00:15:39]} {[%emt 00:00:02]} 5. O-O {[%clk 00:15:46]} {[%emt 00:00:03]}
Be7 {[%clk 00:15:44]} {[%emt 00:00:05]} 6. Re1 {[%clk 00:15:42]} {[%emt
00:00:14]} b5 {[%clk 00:15:49]} {[%emt 00:00:05]} 7. Bb3 {[%clk 00:15:51]}
{[%emt 00:00:01]} O-O {[%clk 00:15:54]} {[%emt 00:00:05]} 8. c3 {[%clk
00:15:36]} {[%emt 00:00:25]} d5 {[%clk 00:15:58]} {[%emt 00:00:05]} 9. d3
{[%clk 00:15:38]} {[%emt 00:00:08]} dxe4 {[%clk 00:15:43]} {[%emt 00:00:25]} 10.
dxe4 {[%clk 00:15:46]} {[%emt 00:00:03]} Qxd1 {[%clk 00:15:42]} {[%emt
00:00:11]} 11. Rxd1 {[%clk 00:15:54]} {[%emt 00:00:02]} Bg4 {[%clk 00:14:14]}
{[%emt 00:01:38]} 12. Nbd2 {[%clk 00:13:56]} {[%emt 00:02:08]} Rad8 {[%clk
00:13:05]} {[%emt 00:01:19]} 13. Re1 {[%clk 00:12:38]} {[%emt 00:01:28]} Bc5
{[%clk 00:11:15]} {[%emt 00:02:00]} 14. h3 {[%clk 00:11:56]} {[%emt 00:00:52]}
Bh5 {[%clk 00:11:12]} {[%emt 00:00:13]} 15. Nf1 {[%clk 00:11:30]} {[%emt
00:00:37]} Bxf3 {[%clk 00:10:42]} {[%emt 00:00:39]} 16. gxf3 {[%clk 00:11:37]}
{[%emt 00:00:03]} Nh5 {[%clk 00:09:37]} {[%emt 00:01:15]} 17. Bg5 {[%clk
00:10:38]} {[%emt 00:01:10]} Rd3 {[%clk 00:08:14]} {[%emt 00:01:32]} 18. Kg2
{[%clk 00:09:22]} {[%emt 00:01:27]} h6 {[%clk 00:08:08]} {[%emt 00:00:17]} 19.
Be3 {[%clk 00:09:13]} {[%emt 00:00:18]} Bxe3 {[%clk 00:08:06]} {[%emt
00:00:11]} 20. fxe3 {[%clk 00:09:18]} {[%emt 00:00:06]} Rfd8 {[%clk 00:07:07]}
{[%emt 00:01:09]} 21. Rad1 {[%clk 00:09:13]} {[%emt 00:00:15]} Ne7 {[%clk
00:05:59]} {[%emt 00:01:18]} 22. Rxd3 {[%clk 00:09:10]} {[%emt 00:00:14]} Rxd3
{[%clk 00:06:06]} {[%emt 00:00:02]} 23. Rd1 {[%clk 00:09:16]} {[%emt 00:00:04]}
Rxd1 {[%clk 00:06:07]} {[%emt 00:00:09]} 24. Bxd1 {[%clk 00:09:25]} Nf6 {[%clk
00:05:36]} {[%emt 00:00:41]} 25. Nd2 {[%clk 00:08:56]} {[%emt 00:00:39]} Kf8
{[%clk 00:04:33]} {[%emt 00:01:14]} 26. c4 {[%clk 00:07:26]} {[%emt 00:01:41]}
Ke8 {[%clk 00:04:25]} {[%emt 00:00:17]} 27. cxb5 {[%clk 00:07:25]} {[%emt
00:00:11]} axb5 {[%clk 00:04:34]} {[%emt 00:00:02]} 28. a4 {[%clk 00:07:22]}
{[%emt 00:00:13]} bxa4 {[%clk 00:03:51]} {[%emt 00:00:53]} 29. Bxa4+ {[%clk
00:07:29]} {[%emt 00:00:03]} Kd8 {[%clk 00:03:59]} 30. Nc4 {[%clk 00:07:31]}
{[%emt 00:00:10]} Ng6 {[%clk 00:04:01]} {[%emt 00:00:07]} 31. b4 {[%clk
00:07:09]} {[%emt 00:00:32]} Nd7 {[%clk 00:03:43]} {[%emt 00:00:29]} 32. Bc6
{[%clk 00:05:53]} {[%emt 00:01:26]} f6 {[%clk 00:03:34]} {[%emt 00:00:19]} 33.
b5 {[%clk 00:05:25]} {[%emt 00:00:39]} Nc5 {[%clk 00:03:28]} {[%emt 00:00:16]}
34. Kg3 {[%clk 00:04:47]} {[%emt 00:00:48]} Nd3 {[%clk 00:03:12]} {[%emt
00:00:26]} 35. Bd5 {[%clk 00:04:37]} {[%emt 00:00:19]} Ne7 {[%clk 00:02:48]}
{[%emt 00:00:33]} 36. f4 {[%clk 00:04:16]} {[%emt 00:00:32]} exf4+ {[%clk
00:02:55]} {[%emt 00:00:03]} 37. exf4 {[%clk 00:04:23]} {[%emt 00:00:03]} Nxd5
{[%clk 00:03:00]} {[%emt 00:00:06]} 38. exd5 {[%clk 00:04:31]} {[%emt
00:00:02]} Nb4 {[%clk 00:03:01]} {[%emt 00:00:07]} 39. d6 {[%clk 00:04:17]}
{[%emt 00:00:24]} Nc2 {[%clk 00:02:27]} {[%emt 00:00:44]} 40. b6 {[%clk
00:03:51]} {[%emt 00:00:36]} cxb6 {[%clk 00:02:29]} {[%emt 00:00:08]} 41. Nxb6
{[%clk 00:03:59]} {[%emt 00:00:02]} Ne3 {[%clk 00:02:25]} {[%emt 00:00:16]} 42.
Kf3 {[%clk 00:03:06]} {[%emt 00:01:02]} Nf5 {[%clk 00:02:33]} {[%emt 00:00:02]}
43. d7 {[%clk 00:02:57]} {[%emt 00:00:19]} g6 {[%clk 00:02:24]} {[%emt
00:00:19]} 44. Ke4 {[%clk 00:02:52]} {[%emt 00:00:15]} Ne7 {[%clk 00:01:48]}
{[%emt 00:00:45]} 45. h4 {[%clk 00:02:48]} {[%emt 00:00:15]} g5 {[%clk
00:01:49]} {[%emt 00:00:08]} 46. fxg5 {[%clk 00:02:50]} {[%emt 00:00:08]} fxg5
{[%clk 00:01:58]} {[%emt 00:00:02]} 47. hxg5 {[%clk 00:02:58]} {[%emt
00:00:02]} hxg5 {[%clk 00:02:06]} {[%emt 00:00:01]} 48. Kf3 {[%clk 00:02:43]}
{[%emt 00:00:26]} Nc6 {[%clk 00:02:07]} {[%emt 00:00:09]} 49. Kg4 {[%clk
00:02:47]} {[%emt 00:00:06]} Ne5+ {[%clk 00:02:14]} {[%emt 00:00:02]} 50. Kxg5
{[%clk 00:02:54]} {[%emt 00:00:03]} Nxd7 {[%emt 00:00:01]} 1/2-1/2

[Event "Snabb-SM för veteraner, 65+ 2019"]
[Site "Schackcentrum, Vegagatan 20, Gothenburg, Sweden"]
[Date "2019.10.05"]
[Round "2.2"]
[White "Andersson, Kaj"]
[Black "Green, Per"]
[Result "1/2-1/2"]
[TimeControl "15 minutes + 10 seconds per move from move one"]
[WhiteFideId "1709860"]
[BlackFideId "1703811"]
[WhiteElo "2083"]
[BlackElo "1923"]

1. e4 {[%clk 00:15:17]} {[%emt 00:00:01]} c5 {[%clk 00:15:09]} {[%emt
00:00:11]} 2. Nf3 {[%clk 00:15:25]} {[%emt 00:00:02]} e6 {[%clk 00:15:18]}
{[%emt 00:00:01]} 3. d4 {[%clk 00:15:32]} {[%emt 00:00:03]} cxd4 {[%clk
00:15:26]} {[%emt 00:00:02]} 4. Nxd4 {[%clk 00:15:40]} {[%emt 00:00:02]} Nc6
{[%clk 00:15:35]} {[%emt 00:00:02]} 5. Be3 {[%clk 00:15:41]} {[%emt 00:00:08]}
a6 {[%clk 00:15:28]} {[%emt 00:00:19]} 6. c3 {[%clk 00:15:43]} {[%emt
00:00:08]} Qc7 {[%clk 00:15:19]} {[%emt 00:00:19]} 7. Bd3 {[%clk 00:15:44]}
{[%emt 00:00:08]} Nf6 {[%clk 00:14:30]} {[%emt 00:00:59]} 8. Nd2 {[%clk
00:15:51]} {[%emt 00:00:03]} Ne5 {[%clk 00:14:30]} {[%emt 00:00:10]} 9. Be2
{[%clk 00:15:24]} {[%emt 00:00:36]} b5 {[%clk 00:13:47]} {[%emt 00:00:54]} 10.
f4 {[%clk 00:15:31]} {[%emt 00:00:03]} Nc4 {[%clk 00:13:37]} {[%emt 00:00:20]}
11. Nxc4 {[%clk 00:15:15]} {[%emt 00:00:26]} bxc4 {[%clk 00:13:46]} {[%emt
00:00:02]} 12. Bf3 {[%clk 00:15:07]} {[%emt 00:00:17]} Bb7 {[%clk 00:13:49]}
{[%emt 00:00:07]} 13. Qc2 {[%clk 00:13:54]} {[%emt 00:01:23]} h5 {[%clk
00:10:36]} {[%emt 00:03:23]} 14. Rd1 {[%clk 00:13:24]} {[%emt 00:00:40]} Ng4
{[%clk 00:10:21]} {[%emt 00:00:26]} 15. Bc1 {[%clk 00:13:08]} {[%emt 00:00:25]}
Be7 {[%clk 00:10:05]} {[%emt 00:00:26]} 16. O-O {[%clk 00:13:02]} {[%emt
00:00:16]} g5 {[%clk 00:09:11]} {[%emt 00:01:05]} 17. g3 {[%clk 00:11:41]}
{[%emt 00:01:30]} gxf4 {[%clk 00:08:36]} {[%emt 00:00:46]} 18. gxf4 {[%clk
00:10:13]} {[%emt 00:01:37]} Rg8 {[%clk 00:07:30]} {[%emt 00:01:16]} 19. Kh1
{[%clk 00:10:07]} {[%emt 00:00:16]} Bd6 {[%clk 00:06:42]} {[%emt 00:00:57]} 20.
e5 {[%clk 00:09:23]} {[%emt 00:00:53]} Bc5 {[%clk 00:06:12]} {[%emt 00:00:41]}
21. Qe2 {[%clk 00:07:53]} {[%emt 00:01:40]} Bb6 {[%clk 00:05:44]} {[%emt
00:00:38]} 22. Bxb7 {[%clk 00:07:31]} {[%emt 00:00:31]} Qxb7+ {[%clk 00:05:52]}
{[%emt 00:00:03]} 23. Qf3 {[%clk 00:07:34]} {[%emt 00:00:06]} O-O-O {[%clk
00:05:00]} {[%emt 00:01:02]} 24. h3 {[%clk 00:04:57]} {[%emt 00:02:47]} Nh6
{[%clk 00:04:58]} {[%emt 00:00:13]} 25. Qxb7+ {[%clk 00:03:24]} {[%emt
00:01:43]} Kxb7 {[%clk 00:05:06]} {[%emt 00:00:02]} 26. Be3 {[%clk 00:03:03]}
{[%emt 00:00:31]} Rg3 {[%clk 00:04:26]} {[%emt 00:00:49]} 27. Bf2 {[%clk
00:02:50]} {[%emt 00:00:24]} Rxh3+ {[%clk 00:03:37]} {[%emt 00:00:59]} 28. Kg2
{[%clk 00:02:59]} {[%emt 00:00:01]} Rd3 {[%clk 00:03:46]} {[%emt 00:00:01]} 29.
Rxd3 {[%clk 00:02:56]} {[%emt 00:00:13]} cxd3 {[%clk 00:03:54]} {[%emt
00:00:02]} 30. Rd1 {[%clk 00:03:01]} {[%emt 00:00:04]} Rg8+ {[%clk 00:03:54]}
{[%emt 00:00:10]} 31. Kf3 {[%clk 00:03:05]} {[%emt 00:00:06]} Bxd4 {[%clk
00:03:49]} {[%emt 00:00:15]} 32. cxd4 {[%clk 00:02:59]} {[%emt 00:00:16]} Rc8
{[%clk 00:02:26]} {[%emt 00:01:34]} 33. Rxd3 {[%clk 00:02:47]} {[%emt
00:00:22]} Rc2 {[%clk 00:02:33]} {[%emt 00:00:02]} 34. Rb3+ {[%clk 00:02:25]}
{[%emt 00:00:33]} Ka8 {[%clk 00:02:37]} {[%emt 00:00:06]} 35. Rb6 {[%clk
00:01:40]} {[%emt 00:00:55]} Rc6 {[%clk 00:02:30]} {[%emt 00:00:17]} 36. Rxc6
{[%clk 00:01:36]} {[%emt 00:00:14]} dxc6 {[%clk 00:02:39]} {[%emt 00:00:01]} 37.
b4 {[%clk 00:01:23]} {[%emt 00:00:23]} Nf5 {[%clk 00:02:21]} {[%emt 00:00:27]}
38. Bg1 {[%clk 00:01:10]} {[%emt 00:00:23]} Kb7 {[%clk 00:02:26]} {[%emt
00:00:05]} 39. Ke4 {[%clk 00:01:10]} {[%emt 00:00:10]} Kc7 {[%clk 00:02:19]}
{[%emt 00:00:17]} 40. Bf2 {[%clk 00:01:13]} {[%emt 00:00:07]} Kd7 {[%clk
00:02:10]} {[%emt 00:00:19]} 41. Bg1 {[%clk 00:01:20]} {[%emt 00:00:03]} Ke7
{[%clk 00:02:11]} {[%emt 00:00:09]} 42. Bf2 {[%clk 00:01:29]} Kd7 {[%clk
00:01:02]} {[%emt 00:01:21]} 43. Bg1 {[%clk 00:01:31]} {[%emt 00:00:07]} Kc7
{[%clk 00:00:48]} {[%emt 00:00:24]} 44. Bf2 {[%clk 00:01:39]} {[%emt 00:00:02]}
Kd7 {[%clk 00:00:43]} {[%emt 00:00:16]} 45. Bg1 {[%clk 00:01:48]} {[%emt
00:00:01]} Kc7 {[%emt 00:00:05]} 46. d5 {[%emt 00:00:02]} Kb6 1/2-1/2

[Event "Snabb-SM för veteraner, 65+ 2019"]
[Site "Schackcentrum, Vegagatan 20, Gothenburg, Sweden"]
[Date "2019.10.05"]
[Round "2.3"]
[White "Degerfeldt, Sven"]
[Black "Dolata, Henryk"]
[Result "0-1"]
[TimeControl "15 minutes + 10 seconds per move from move one"]
[WhiteFideId "1717430"]
[BlackFideId "1709046"]
[WhiteElo "1822"]
[BlackElo "2064"]

1. d4 {[%clk 00:15:15]} {[%emt 00:00:04]} e6 {[%clk 00:15:19]} {[%emt
00:00:02]} 2. c4 {[%clk 00:15:07]} {[%emt 00:00:18]} d5 {[%clk 00:15:28]}
{[%emt 00:00:01]} 3. Nc3 {[%clk 00:15:11]} {[%emt 00:00:05]} Nf6 {[%clk
00:15:37]} 4. Nf3 {[%clk 00:15:06]} {[%emt 00:00:16]} Be7 {[%clk 00:15:47]}
{[%emt 00:00:01]} 5. Bf4 {[%clk 00:15:01]} {[%emt 00:00:14]} O-O {[%clk
00:15:53]} {[%emt 00:00:04]} 6. e3 {[%clk 00:15:10]} b6 {[%clk 00:13:52]}
{[%emt 00:02:12]} 7. cxd5 {[%clk 00:14:40]} {[%emt 00:00:40]} Nxd5 {[%clk
00:13:43]} {[%emt 00:00:19]} 8. Nxd5 {[%clk 00:13:05]} {[%emt 00:01:45]} exd5
{[%clk 00:13:44]} {[%emt 00:00:09]} 9. a3 {[%clk 00:13:13]} {[%emt 00:00:02]}
c5 {[%clk 00:13:04]} {[%emt 00:00:50]} 10. Be2 {[%clk 00:13:06]} {[%emt
00:00:16]} Nc6 {[%clk 00:11:55]} {[%emt 00:01:19]} 11. O-O {[%clk 00:12:55]}
{[%emt 00:00:21]} Bb7 {[%clk 00:11:02]} {[%emt 00:01:04]} 12. dxc5 {[%clk
00:12:28]} {[%emt 00:00:37]} bxc5 {[%clk 00:11:09]} {[%emt 00:00:03]} 13. Qc2
{[%clk 00:12:13]} {[%emt 00:00:24]} Rc8 {[%clk 00:11:02]} {[%emt 00:00:18]} 14.
Rfd1 {[%clk 00:12:21]} {[%emt 00:00:02]} Qb6 {[%clk 00:10:26]} {[%emt
00:00:46]} 15. Rab1 {[%clk 00:11:59]} {[%emt 00:00:31]} Rfd8 {[%clk 00:10:33]}
{[%emt 00:00:03]} 16. Bd3 {[%clk 00:11:27]} {[%emt 00:00:42]} g6 {[%clk
00:10:13]} {[%emt 00:00:30]} 17. Qc3 {[%clk 00:10:46]} {[%emt 00:00:51]} d4
{[%clk 00:08:59]} {[%emt 00:01:24]} 18. Qe1 {[%clk 00:10:23]} {[%emt 00:00:32]}
Bf6 {[%clk 00:08:35]} {[%emt 00:00:35]} 19. e4 {[%clk 00:09:02]} {[%emt
00:01:30]} Bg7 {[%clk 00:06:53]} {[%emt 00:01:52]} 20. Nd2 {[%clk 00:08:08]}
{[%emt 00:01:04]} Na5 {[%clk 00:06:38]} {[%emt 00:00:26]} 21. b3 {[%clk
00:07:44]} {[%emt 00:00:34]} Ba6 {[%clk 00:06:16]} {[%emt 00:00:32]} 22. Nc4
{[%clk 00:07:11]} {[%emt 00:00:43]} Nxc4 {[%clk 00:06:10]} {[%emt 00:00:17]} 23.
bxc4 {[%clk 00:07:19]} {[%emt 00:00:02]} Qe6 {[%clk 00:05:59]} {[%emt
00:00:19]} 24. Qe2 {[%clk 00:07:15]} {[%emt 00:00:15]} Be5 {[%clk 00:05:56]}
{[%emt 00:00:14]} 25. Bxe5 {[%clk 00:07:04]} {[%emt 00:00:20]} Qxe5 {[%clk
00:06:05]} 26. g3 {[%clk 00:07:11]} {[%emt 00:00:04]} Rb8 {[%clk 00:05:31]}
{[%emt 00:00:45]} 27. f4 {[%clk 00:06:44]} {[%emt 00:00:36]} Qc7 {[%clk
00:05:40]} 28. e5 {[%clk 00:06:28]} {[%emt 00:00:27]} Bc8 {[%clk 00:05:09]}
{[%emt 00:00:41]} 29. Be4 {[%clk 00:06:26]} {[%emt 00:00:12]} Be6 {[%clk
00:05:16]} {[%emt 00:00:03]} 30. Qd3 {[%clk 00:05:38]} {[%emt 00:00:58]} Qd7
{[%clk 00:03:19]} {[%emt 00:02:09]} 31. Rb3 {[%clk 00:04:32]} {[%emt 00:01:15]}
Qa4 {[%clk 00:02:22]} {[%emt 00:01:08]} 32. Rxb8 {[%clk 00:04:00]} {[%emt
00:00:41]} Rxb8 {[%clk 00:02:31]} 33. Bd5 {[%clk 00:03:52]} {[%emt 00:00:18]}
Rb3 {[%clk 00:02:41]} {[%emt 00:00:01]} 34. Qe4 {[%clk 00:04:01]} Rxg3+ {[%clk
00:02:17]} {[%emt 00:00:34]} 35. hxg3 {[%clk 00:04:03]} {[%emt 00:00:09]} Qxd1+
{[%clk 00:02:26]} 36. Kf2 {[%clk 00:04:04]} {[%emt 00:00:08]} Qd2+ {[%clk
00:02:27]} {[%emt 00:00:10]} 37. Kg1 {[%clk 00:03:15]} {[%emt 00:00:58]} Qc1+
{[%clk 00:01:55]} {[%emt 00:00:42]} 38. Kf2 {[%clk 00:03:19]} {[%emt 00:00:06]}
Qxa3 {[%clk 00:01:49]} {[%emt 00:00:17]} 39. Bxe6 {[%clk 00:03:01]} {[%emt
00:00:27]} fxe6 {[%clk 00:01:44]} {[%emt 00:00:15]} 40. Qa8+ {[%clk 00:03:06]}
{[%emt 00:00:04]} Kg7 {[%clk 00:01:54]} 41. Qb7+ {[%clk 00:03:15]} {[%emt
00:00:01]} Kh6 {[%clk 00:02:03]} 42. Qe7 {[%clk 00:03:21]} {[%emt 00:00:04]}
Qb2+ {[%clk 00:01:56]} {[%emt 00:00:17]} 43. Kf3 {[%clk 00:03:06]} {[%emt
00:00:25]} Qb3+ {[%clk 00:02:00]} {[%emt 00:00:07]} 44. Kg2 {[%clk 00:02:56]}
{[%emt 00:00:18]} Qc2+ {[%clk 00:02:07]} {[%emt 00:00:04]} 45. Kf3 {[%clk
00:02:55]} {[%emt 00:00:11]} Qd3+ {[%clk 00:02:14]} {[%emt 00:00:03]} 46. Kg2
{[%clk 00:02:57]} {[%emt 00:00:09]} Qe4+ {[%clk 00:02:08]} {[%emt 00:00:15]} 47.
Kh2 {[%clk 00:02:30]} {[%emt 00:00:37]} Qf5 {[%clk 00:01:59]} {[%emt 00:00:20]}
48. Qxc5 {[%clk 00:02:23]} {[%emt 00:00:16]} d3 {[%clk 00:02:04]} {[%emt
00:00:05]} 49. Qe3 {[%clk 00:02:25]} {[%emt 00:00:08]} a5 {[%clk 00:02:00]}
{[%emt 00:00:15]} 50. c5 {[%clk 00:01:51]} {[%emt 00:00:44]} Qh5+ {[%clk
00:01:05]} {[%emt 00:01:05]} 51. Kg2 {[%clk 00:02:00]} {[%emt 00:00:01]} Qd1
{[%clk 00:01:14]} 52. f5+ {[%clk 00:02:02]} {[%emt 00:00:08]} g5 {[%clk
00:01:21]} {[%emt 00:00:02]} 53. f6 {[%clk 00:01:34]} {[%emt 00:00:38]} Qc2+
{[%clk 00:01:30]} {[%emt 00:00:02]} 54. Kh3 {[%clk 00:01:33]} {[%emt 00:00:10]}
d2 {[%clk 00:01:32]} {[%emt 00:00:08]} 55. f7 {[%clk 00:01:39]} {[%emt
00:00:04]} Qf5+ {[%clk 00:01:31]} {[%emt 00:00:11]} 56. g4 {[%clk 00:01:35]}
{[%emt 00:00:14]} Qf1+ {[%clk 00:01:40]} 57. Kh2 {[%clk 00:01:19]} {[%emt
00:00:26]} d1=Q {[%clk 00:01:29]} {[%emt 00:00:21]} 58. Qh3+ {[%clk 00:01:14]}
{[%emt 00:00:15]} Qxh3+ {[%clk 00:01:37]} {[%emt 00:00:02]} 59. Kxh3 {[%clk
00:01:23]} Qf3+ {[%clk 00:01:45]} {[%emt 00:00:03]} 60. Kh2 {[%clk 00:01:31]}
{[%emt 00:00:02]} Qxf7 {[%clk 00:01:50]} {[%emt 00:00:05]} 0-1

[Event "Snabb-SM för veteraner, 65+ 2019"]
[Site "Schackcentrum, Vegagatan 20, Gothenburg, Sweden"]
[Date "2019.10.05"]
[Round "2.4"]
[White "Stroem, Leif"]
[Black "Olesen, Christer"]
[Result "1-0"]
[TimeControl "15 minutes + 10 seconds per move from move one"]
[WhiteFideId "1709410"]
[BlackFideId "1739069"]
[WhiteElo "2014"]
[BlackElo "1809"]

1. c4 {[%clk 00:15:17]} {[%emt 00:00:02]} c6 {[%clk 00:15:13]} {[%emt
00:00:07]} 2. g3 {[%clk 00:15:25]} {[%emt 00:00:03]} d5 {[%clk 00:15:20]}
{[%emt 00:00:02]} 3. Bg2 {[%clk 00:15:32]} {[%emt 00:00:03]} Nf6 {[%clk
00:15:20]} {[%emt 00:00:09]} 4. Nf3 {[%clk 00:15:39]} {[%emt 00:00:04]} Bf5
{[%clk 00:15:15]} {[%emt 00:00:14]} 5. O-O {[%clk 00:15:33]} {[%emt 00:00:16]}
e6 {[%clk 00:14:58]} {[%emt 00:00:27]} 6. b3 {[%clk 00:15:40]} {[%emt
00:00:04]} g6 {[%clk 00:14:48]} {[%emt 00:00:20]} 7. Bb2 {[%clk 00:15:48]}
{[%emt 00:00:02]} Bg7 {[%clk 00:14:56]} {[%emt 00:00:02]} 8. d3 {[%clk
00:15:46]} {[%emt 00:00:12]} Nbd7 {[%clk 00:11:48]} {[%emt 00:03:19]} 9. Nbd2
{[%clk 00:15:55]} {[%emt 00:00:01]} Bg4 {[%clk 00:10:17]} {[%emt 00:01:40]} 10.
h3 {[%clk 00:15:45]} {[%emt 00:00:19]} Bxf3 {[%clk 00:10:23]} {[%emt 00:00:04]}
11. Nxf3 {[%clk 00:15:54]} {[%emt 00:00:02]} O-O {[%clk 00:10:24]} {[%emt
00:00:09]} 12. Qc2 {[%clk 00:15:52]} {[%emt 00:00:12]} Rc8 {[%clk 00:10:20]}
{[%emt 00:00:14]} 13. Rad1 {[%clk 00:15:25]} {[%emt 00:00:37]} Re8 {[%clk
00:10:17]} {[%emt 00:00:13]} 14. e4 {[%clk 00:15:21]} {[%emt 00:00:14]} Nb6
{[%clk 00:09:31]} {[%emt 00:00:57]} 15. c5 {[%clk 00:14:03]} {[%emt 00:01:28]}
Na8 {[%clk 00:09:01]} {[%emt 00:00:39]} 16. e5 {[%clk 00:13:47]} {[%emt
00:00:26]} Nd7 {[%clk 00:08:21]} {[%emt 00:00:50]} 17. d4 {[%clk 00:13:56]}
{[%emt 00:00:02]} Nc7 {[%clk 00:08:23]} {[%emt 00:00:08]} 18. Bc1 {[%clk
00:13:52]} {[%emt 00:00:14]} f6 {[%clk 00:07:41]} {[%emt 00:00:52]} 19. Rfe1
{[%clk 00:12:05]} {[%emt 00:01:57]} fxe5 {[%clk 00:07:32]} {[%emt 00:00:19]} 20.
dxe5 {[%clk 00:10:35]} {[%emt 00:01:40]} Rf8 {[%clk 00:07:29]} {[%emt
00:00:13]} 21. b4 {[%clk 00:10:28]} {[%emt 00:00:18]} Qe8 {[%clk 00:07:20]}
{[%emt 00:00:19]} 22. Bf4 {[%clk 00:08:54]} {[%emt 00:01:44]} Qe7 {[%clk
00:05:05]} {[%emt 00:02:25]} 23. h4 {[%clk 00:08:52]} {[%emt 00:00:12]} Rf5
{[%clk 00:04:37]} {[%emt 00:00:38]} 24. Bh3 {[%clk 00:08:23]} {[%emt 00:00:38]}
Rff8 {[%clk 00:04:29]} {[%emt 00:00:18]} 25. Rd3 {[%clk 00:06:05]} {[%emt
00:02:28]} h6 {[%clk 00:04:27]} {[%emt 00:00:11]} 26. Qc1 {[%clk 00:05:59]}
{[%emt 00:00:16]} Kh7 {[%clk 00:04:36]} {[%emt 00:00:02]} 27. Kg2 {[%clk
00:05:56]} {[%emt 00:00:13]} Rf7 {[%clk 00:04:31]} {[%emt 00:00:15]} 28. a4
{[%clk 00:05:22]} {[%emt 00:00:45]} Rcf8 {[%clk 00:04:32]} {[%emt 00:00:08]} 29.
Re2 {[%clk 00:05:20]} {[%emt 00:00:12]} a6 {[%clk 00:04:34]} {[%emt 00:00:08]}
30. Rb3 {[%clk 00:05:19]} {[%emt 00:00:11]} Rxf4 {[%clk 00:03:25]} {[%emt
00:01:19]} 31. gxf4 {[%clk 00:05:26]} {[%emt 00:00:03]} Rxf4 {[%clk 00:03:34]}
32. Qxf4 {[%emt 00:00:30]} 1-0